fUSD/lending_fUSD_20241231
["ID","MTS","AMOUNT","RATE_DAILY","PERIOD"]
[347253506,1735638644677,-175.86322,0.00012329,2]
[347253507,1735638644686,-537.069117,0.00012329,2]
[347253508,1735638644696,-537.069117,0.00012329,2]
[347253509,1735638644707,-537.069117,0.00012329,2]
[347253510,1735638644716,-537.069117,0.00012329,2]
[347253511,1735638644727,-354.671889,0.00012329,2]
[347253512,1735638644738,-354.671889,0.00012329,2]
[347253513,1735638644747,-354.671889,0.00012329,2]
[347253514,1735638644756,-354.671889,0.00012329,2]
[347253515,1735638644765,-170.908616,0.00012329,2]
[347253516,1735638644775,-170.908616,0.00012329,2]
[347253517,1735638644784,-170.908616,0.00012329,2]
[347253518,1735638644794,-170.908616,0.00012329,2]
[347253519,1735638644803,-162.910242,0.00012329,2]
[347253520,1735638644812,-162.910242,0.00012329,2]
[347253521,1735638644822,-162.910242,0.00012329,2]
[347253522,1735638644831,-162.910242,0.00012329,2]
[347253523,1735638644840,-151.0,0.00012329,2]
[347253524,1735638644849,-151.0,0.00012329,2]
[347253525,1735638644858,-151.0,0.00012329,2]
[347253526,1735638644867,-152.78817,0.00012329,2]
[347253527,1735638644877,-151.0,0.00012329,2]
[347253528,1735638644886,-151.0,0.00012329,2]
[347253529,1735638644895,-151.0,0.00012329,2]
[347253530,1735638644905,-151.0,0.00012329,2]
[347253531,1735638644914,-255.987705,0.00012329,2]
[347253532,1735638644923,-255.987705,0.00012329,2]
[347253533,1735638644932,-151.0,0.00012329,2]
[347253534,1735638644942,-151.0,0.00012329,2]
[347253535,1735638644951,-151.0,0.00012329,2]
[347253536,1735638644960,-151.0,0.00012329,2]
[347253537,1735638644973,-223.684608,0.00012329,2]
[347253538,1735638644982,-223.684608,0.00012329,2]
[347253539,1735638644991,-223.684608,0.00012329,2]
[347253540,1735638645000,-223.684608,0.00012329,2]
[347253541,1735638645010,-311.626795,0.00012329,2]
[347253542,1735638645019,-311.626795,0.00012329,2]
[347253543,1735638645029,-151.0,0.00012329,2]
[347253544,1735638645038,-151.0,0.00012329,2]
[347253545,1735638645047,-151.0,0.00012329,2]
[347253546,1735638645056,-267.159409,0.00012329,2]
[347253547,1735638645066,-267.159409,0.00012329,2]
[347253548,1735638645075,-267.159409,0.00012329,2]
[347253549,1735638645084,-267.159409,0.00012329,2]
[347253550,1735638645094,-267.159409,0.00012329,2]
[347253551,1735638645103,-267.159409,0.00012329,2]
[347253552,1735638645112,-151.0,0.00012329,2]
[347253553,1735638645121,-151.0,0.00012329,2]
[347253554,1735638645130,-151.0,0.00012329,2]
[347253555,1735638645139,-1492.444352,0.00012329,2]
[347253556,1735638645148,-1492.444352,0.00012329,2]
[347253557,1735638645159,-1492.444352,0.00012329,2]
[347253558,1735638645168,-1492.444352,0.00012329,2]
[347253559,1735638645177,-1492.444352,0.00012329,2]
[347253560,1735638645186,-1492.444352,0.00012329,2]
[347253561,1735638645195,-151.0,0.00012329,2]
[347253562,1735638645204,-151.0,0.00012329,2]
[347253563,1735638645212,-155.215131,0.00012329,2]
[347253564,1735638645223,-350.0,0.00012329,2]
[347253565,1735638645232,-350.0,0.00012329,2]
[347253566,1735638645242,-151.0,0.00012329,2]
[347253567,1735638645251,-151.0,0.00012329,2]
[347253568,1735638645260,-151.0,0.00012329,2]
[347253569,1735638645269,-152.925727,0.00012329,2]
[347253570,1735638645279,-535.535461,0.00012329,2]
[347253571,1735638645288,-535.535461,0.00012329,2]
[347253572,1735638645297,-535.535461,0.00012329,2]
[347253573,1735638645307,-535.535461,0.00012329,2]
[347253574,1735638645316,-535.535461,0.00012329,2]
[347253575,1735638645325,-535.535461,0.00012329,2]
[347253576,1735638645335,-151.0,0.00012329,2]
[347253577,1735638645343,-164.98427,0.00012329,2]
[347253578,1735638645352,-151.0,0.00012329,2]
[347253579,1735638645362,-151.0,0.00012329,2]
[347253580,1735638645371,-151.0,0.00012329,2]
[347253581,1735638645380,-151.0,0.00012329,2]
[347253582,1735638645389,-151.0,0.00012329,2]
[347253583,1735638645398,-282.3,0.00012329,2]
[347253584,1735638645407,-282.3,0.00012329,2]
[347253585,1735638645416,-282.3,0.00012329,2]
[347253586,1735638645425,-282.3,0.00012329,2]
[347253587,1735638645435,-282.3,0.00012329,2]
[347253588,1735638645444,-282.3,0.00012329,2]
[347253589,1735638645453,-257.425451,0.00012329,2]
[347253590,1735638645462,-257.425451,0.00012329,2]
[347253591,1735638645472,-257.425451,0.00012329,2]
[347253592,1735638645481,-197.438692,0.00012329,2]
[347253593,1735638645490,-197.438692,0.00012329,2]
[347253594,1735638645499,-257.425451,0.00012329,2]
[347253595,1735638645508,-197.438692,0.00012329,2]
[347253596,1735638645518,-257.425451,0.00012329,2]
[347253598,1735638645527,-257.425451,0.00012329,2]
[347253599,1735638645537,-197.438692,0.00012329,2]
[347253600,1735638645546,-197.438692,0.00012329,2]
[347253601,1735638645555,-197.438692,0.00012329,2]
[347253602,1735638645564,-196.41341,0.00012329,2]
[347253604,1735638645574,-196.41341,0.00012329,2]
[347253606,1735638645583,-196.41341,0.00012329,2]
[347253607,1735638645592,-196.41341,0.00012329,2]
[347253609,1735638645601,-289.728164,0.00012329,2]
[347253611,1735638645611,-289.728164,0.00012329,2]
[347253613,1735638645620,-289.728164,0.00012329,2]
[347253615,1735638645629,-289.728164,0.00012329,2]
[347253617,1735638645638,-1062.265656,0.00012329,2]
[347253619,1735638645647,-1062.265656,0.00012329,2]
[347253621,1735638645658,-1062.265656,0.00012329,2]
[347253622,1735638645668,-1062.265656,0.00012329,2]
[347253624,1735638645677,-1062.265656,0.00012329,2]
[347253626,1735638645686,-1062.265656,0.00012329,2]
[347253627,1735638645695,-151.0,0.00012329,2]
[347253628,1735638645705,-151.0,0.00012329,2]
[347253629,1735638645714,-151.0,0.00012329,2]
[347253630,1735638645724,-151.0,0.00012329,2]
[347253631,1735638645734,-151.0,0.00012329,2]
[347253632,1735638645744,-151.0,0.00012329,2]
[347253633,1735638645754,-151.0,0.00012329,2]
[347253634,1735638645763,-151.0,0.00012329,2]
[347253635,1735638645773,-151.0,0.00012329,2]
[347253636,1735638645782,-151.0,0.00012329,2]
[347253637,1735638645791,-151.0,0.00012329,2]
[347253638,1735638645801,-151.0,0.00012329,2]
[347253639,1735638645811,-151.0,0.00012329,2]
[347253640,1735638645820,-151.0,0.00012329,2]
[347253641,1735638645829,-151.0,0.00012329,2]
[347253642,1735638645839,-151.0,0.00012329,2]
[347253643,1735638645848,-151.0,0.00012329,2]
[347253644,1735638645858,-153.165572,0.00012329,2]
[347253645,1735638645867,-151.0,0.00012329,2]
[347253646,1735638645876,-151.0,0.00012329,2]
[347253647,1735638645886,-151.0,0.00012329,2]
[347253648,1735638645895,-151.0,0.00012329,2]
[347253649,1735638645904,-151.0,0.00012329,2]
[347253650,1735638645914,-191.059084,0.00012329,2]
[347253651,1735638645923,-10000.0,0.00012329,2]
[347253652,1735638645933,-10000.0,0.00012329,2]
[347253653,1735638645942,-10000.0,0.00012329,2]
[347253654,1735638645952,-10000.0,0.00012329,2]
[347253655,1735638645961,-10000.0,0.00012329,2]
[347253656,1735638645971,-10000.0,0.00012329,2]
[347253657,1735638645980,-10000.0,0.00012329,2]
[347253658,1735638645989,-10000.0,0.00012329,2]
[347253659,1735638645999,-10000.0,0.00012329,2]
[347253660,1735638646008,-10000.0,0.00012329,2]
[347253661,1735638646017,-3620.469399,0.00012329,2]
[347253662,1735638646027,-151.0,0.00012329,2]
[347253663,1735638646036,-151.0,0.00012329,2]
[347253664,1735638646046,-151.0,0.00012329,2]
[347253665,1735638646055,-151.0,0.00012329,2]
[347253666,1735638646064,-176.110835,0.00012329,2]
[347253667,1735638646074,-151.0,0.00012329,2]
[347253668,1735638646084,-153.118417,0.00012329,2]
[347253669,1735638646094,-151.0,0.00012329,2]
[347253671,1735638646104,-151.0,0.00012329,2]
[347253673,1735638646113,-151.0,0.00012329,2]
[347253674,1735638646123,-151.0,0.00012329,2]
[347253676,1735638646133,-151.0,0.00012329,2]
[347253677,1735638646142,-151.0,0.00012329,2]
[347253678,1735638646152,-269.868364,0.00012329,2]
[347253680,1735638646161,-269.868364,0.00012329,2]
[347253682,1735638646170,-269.868364,0.00012329,2]
[347253683,1735638646180,-269.868364,0.00012329,2]
[347253684,1735638646189,-269.868364,0.00012329,2]
[347253685,1735638646199,-269.868364,0.00012329,2]
[347253686,1735638646208,-269.868364,0.00012329,2]
[347253687,1735638646218,-269.868364,0.00012329,2]
[347253688,1735638646228,-224.946794,0.00012329,2]
[347253689,1735638646239,-224.946794,0.00012329,2]
[347253690,1735638646248,-224.946794,0.00012329,2]
[347253691,1735638646257,-224.946794,0.00012329,2]
[347253692,1735638646267,-1991.652634,0.00012329,2]
[347253693,1735638646276,-1991.652634,0.00012329,2]
[347253694,1735638646286,-1991.652634,0.00012329,2]
[347253695,1735638646295,-1991.652634,0.00012329,2]
[347253696,1735638646304,-1991.652634,0.00012329,2]
[347253697,1735638646314,-2180.929849,0.00012329,2]
[347253698,1735638646323,-1991.652634,0.00012329,2]
[347253699,1735638646332,-2180.929849,0.00012329,2]
[347253700,1735638646341,-1991.652634,0.00012329,2]
[347253701,1735638646351,-1991.652634,0.00012329,2]
[347253702,1735638646360,-2180.929849,0.00012329,2]
[347253703,1735638646369,-2180.929849,0.00012329,2]
[347253704,1735638646378,-151.0,0.00012329,2]
[347253705,1735638646388,-151.0,0.00012329,2]
[347253706,1735638646397,-1165.136303,0.00012329,2]
[347253707,1735638646406,-151.0,0.00012329,2]
[347253708,1735638646415,-1165.136303,0.00012329,2]
[347253709,1735638646425,-1165.136303,0.00012329,2]
[347253710,1735638646434,-1165.136303,0.00012329,2]
[347253711,1735638646443,-1165.136303,0.00012329,2]
[347253712,1735638646453,-1165.136303,0.00012329,2]
[347253713,1735638646462,-1165.136303,0.00012329,2]
[347253714,1735638646471,-1165.136303,0.00012329,2]
[347253715,1735638646480,-178.630696,0.00012329,2]
[347253716,1735638646490,-178.630696,0.00012329,2]
[347253717,1735638646500,-178.630696,0.00012329,2]
[347253718,1735638646509,-178.630696,0.00012329,2]
[347253719,1735638646518,-151.0,0.00012329,2]
[347253720,1735638646528,-151.0,0.00012329,2]
[347253721,1735638646538,-151.0,0.00012329,2]
[347253722,1735638646547,-262.436036,0.00012329,2]
[347253723,1735638646557,-262.436036,0.00012329,2]
[347253724,1735638646566,-262.436036,0.00012329,2]
[347253725,1735638646575,-151.0,0.00012329,2]
[347253726,1735638646584,-262.436036,0.00012329,2]
[347253727,1735638646593,-151.0,0.00012329,2]
[347253728,1735638646603,-262.436036,0.00012329,2]
[347253729,1735638646612,-151.581845,0.00012329,2]
[347253730,1735638646621,-262.436036,0.00012329,2]
[347253731,1735638646631,-604.1,0.00012329,2]
[347253732,1735638646640,-294.34,0.00012334,2]
[347253733,1735638646650,-420.0,0.0001234,2]
[347253734,1735638646663,-151.0,0.00012343,2]
[347253735,1735638646673,-566.0,0.00012355,2]
[347253736,1735638646683,-91938.1149725,0.00012378,2]
[347253737,1735638646693,-175.86322,0.00012378,2]
[347253738,1735638646703,-537.069117,0.00012378,2]
[347253739,1735638646712,-537.069117,0.00012378,2]
[347253740,1735638646722,-354.671889,0.00012378,2]
[347253741,1735638646732,-354.671889,0.00012378,2]
[347253742,1735638646742,-170.908616,0.00012378,2]
[347253743,1735638646751,-170.908616,0.00012378,2]
[347253744,1735638646760,-151.0,0.00012378,2]
[347253745,1735638646770,-151.0,0.00012378,2]
[347253746,1735638646780,-218.666351,0.00012378,2]
[347253747,1735638646789,-151.0,0.00012378,2]
[347253748,1735638646799,-151.0,0.00012378,2]
[347253749,1735638646808,-255.987705,0.00012378,2]
[347253750,1735638646818,-255.987705,0.00012378,2]
[347253751,1735638646827,-151.0,0.00012378,2]
[347253752,1735638646837,-223.684608,0.00012378,2]
[347253753,1735638646847,-223.684608,0.00012378,2]
[347253754,1735638646857,-311.626795,0.00012378,2]
[347253755,1735638646867,-311.626795,0.00012378,2]
[347253756,1735638646876,-151.812109,0.00012378,2]
[347253757,1735638646886,-267.159409,0.00012378,2]
[347253758,1735638646896,-267.159409,0.00012378,2]
[347253759,1735638646905,-151.0,0.00012378,2]
[347253760,1735638646915,-1492.444352,0.00012378,2]
[347253761,1735638646924,-1492.444352,0.00012378,2]
[347253762,1735638646934,-350.0,0.00012378,2]
[347253763,1735638646943,-350.0,0.00012378,2]
[347253764,1735638646952,-151.541041,0.00012378,2]
[347253765,1735638646961,-535.535461,0.00012378,2]
[347253766,1735638646971,-535.535461,0.00012378,2]
[347253767,1735638646980,-151.0,0.00012378,2]
[347253768,1735638646990,-151.0,0.00012378,2]
[347253769,1735638646999,-282.3,0.00012378,2]
[347253770,1735638647008,-282.3,0.00012378,2]
[347253771,1735638647018,-257.425451,0.00012378,2]
[347253772,1735638647027,-197.438692,0.00012378,2]
[347253773,1735638647036,-257.425451,0.00012378,2]
[347253774,1735638647045,-197.438692,0.00012378,2]
[347253775,1735638647054,-196.41341,0.00012378,2]
[347253776,1735638647063,-196.41341,0.00012378,2]
[347253777,1735638647072,-289.728164,0.00012378,2]
[347253778,1735638647081,-289.728164,0.00012378,2]
[347253779,1735638647091,-1062.265656,0.00012378,2]
[347253780,1735638647100,-1062.265656,0.00012378,2]
[347253781,1735638647109,-151.0,0.00012378,2]
[347253782,1735638647118,-151.0,0.00012378,2]
[347253783,1735638647127,-151.0,0.00012378,2]
[347253784,1735638647136,-151.0,0.00012378,2]
[347253785,1735638647145,-151.0,0.00012378,2]
[347253786,1735638647155,-151.0,0.00012378,2]
[347253787,1735638647164,-10000.0,0.00012378,2]
[347253788,1735638647173,-10000.0,0.00012378,2]
[347253789,1735638647182,-151.0,0.00012378,2]
[347253790,1735638647191,-151.0,0.00012378,2]
[347253791,1735638647200,-151.0,0.00012378,2]
[347253792,1735638647209,-269.868364,0.00012378,2]
[347253793,1735638647218,-269.868364,0.00012378,2]
[347253794,1735638647229,-224.946794,0.00012378,2]
[347253795,1735638647238,-224.946794,0.00012378,2]
[347253796,1735638647247,-1991.652634,0.00012378,2]
[347253797,1735638647257,-2180.929849,0.00012378,2]
[347253798,1735638647266,-1991.652634,0.00012378,2]
[347253799,1735638647274,-2180.929849,0.00012378,2]
[347253800,1735638647283,-287.666937,0.00012378,2]
[347253801,1735638647292,-1165.136303,0.00012378,2]
[347253802,1735638647302,-1165.136303,0.00012378,2]
[347253803,1735638647311,-178.630696,0.00012378,2]
[347253804,1735638647320,-178.630696,0.00012378,2]
[347253805,1735638647329,-151.0,0.00012378,2]
[347253806,1735638647338,-262.436036,0.00012378,2]
[347253807,1735638647347,-262.436036,0.00012378,2]
[347253808,1735638647357,-7675.24385871,0.00012379,2]
[347253809,1735638647366,-1072.55392905,0.00012379,3]
[347253810,1735638647376,-1072.55392905,0.00012379,3]
[347253811,1735638647385,-1072.55392905,0.00012379,3]
[347253812,1735638647394,-1072.55392903,0.00012379,3]
[347253813,1735638647403,-151.0,0.00012379,2]
[347253814,1735638647412,-254538.08564642,0.00012379,2]
[347253815,1735638647421,-701974.75291063,0.00012379,2]
[347253816,1735638647431,-151.0,0.00012379,2]
[347253817,1735638647439,-151.0,0.00012379,2]
[347253818,1735638647449,-288.503914,0.00012379,2]
[347253819,1735638647458,-282.3,0.00012379,2]
[347253820,1735638647467,-282.3,0.00012379,2]
[347253821,1735638647479,-282.3,0.00012379,2]
[347253822,1735638647488,-282.3,0.00012379,2]
[347253823,1735638647497,-257.425451,0.00012379,2]
[347253824,1735638647506,-257.425451,0.00012379,2]
[347253825,1735638647515,-197.438692,0.00012379,2]
[347253826,1735638647525,-197.438692,0.00012379,2]
[347253827,1735638647534,-257.425451,0.00012379,2]
[347253828,1735638647543,-257.425451,0.00012379,2]
[347253829,1735638647552,-197.438692,0.00012379,2]
[347253830,1735638647561,-197.438692,0.00012379,2]
[347253831,1735638647570,-196.41341,0.00012379,2]
[347253832,1735638647579,-196.41341,0.00012379,2]
[347253833,1735638647589,-196.41341,0.00012379,2]
[347253834,1735638647598,-196.41341,0.00012379,2]
[347253835,1735638647607,-289.728164,0.00012379,2]
[347253836,1735638647616,-289.728164,0.00012379,2]
[347253837,1735638647625,-289.728164,0.00012379,2]
[347253838,1735638647634,-289.728164,0.00012379,2]
[347253839,1735638647643,-1062.265656,0.00012379,2]
[347253840,1735638647652,-1062.265656,0.00012379,2]
[347253841,1735638647664,-1062.265656,0.00012379,2]
[347253842,1735638647673,-1062.265656,0.00012379,2]
[347253843,1735638647682,-151.0,0.00012379,2]
[347253844,1735638647691,-151.0,0.00012379,2]
[347253845,1735638647700,-151.0,0.00012379,2]
[347253846,1735638647710,-151.0,0.00012379,2]
[347253847,1735638647719,-151.0,0.00012379,2]
[347253848,1735638647732,-151.0,0.00012379,2]
[347253849,1735638647742,-151.0,0.00012379,2]
[347253850,1735638647751,-151.0,0.00012379,2]
[347253851,1735638647761,-151.0,0.00012379,2]
[347253852,1735638647770,-151.0,0.00012379,2]
[347253853,1735638647779,-151.0,0.00012379,2]
[347253854,1735638647789,-151.0,0.00012379,2]
[347253855,1735638647798,-10000.0,0.00012379,2]
[347253856,1735638647807,-10000.0,0.00012379,2]
[347253857,1735638647816,-10000.0,0.00012379,2]
[347253858,1735638647825,-10000.0,0.00012379,2]
[347253859,1735638647834,-151.0,0.00012379,2]
[347253860,1735638647843,-151.0,0.00012379,2]
[347253861,1735638647853,-151.0,0.00012379,2]
[347253862,1735638647862,-151.0,0.00012379,2]
[347253863,1735638647871,-151.0,0.00012379,2]
[347253864,1735638647880,-151.0,0.00012379,2]
[347253865,1735638647889,-269.868364,0.00012379,2]
[347253866,1735638647899,-269.868364,0.00012379,2]
[347253867,1735638647908,-269.868364,0.00012379,2]
[347253868,1735638647918,-269.868364,0.00012379,2]
[347253869,1735638647928,-224.946794,0.00012379,2]
[347253870,1735638647937,-224.946794,0.00012379,2]
[347253871,1735638647946,-224.946794,0.00012379,2]
[347253872,1735638647955,-224.946794,0.00012379,2]
[347253873,1735638647964,-1991.652634,0.00012379,2]
[347253874,1735638647975,-1991.652634,0.00012379,2]
[347253875,1735638647987,-2180.929849,0.00012379,2]
[347253876,1735638647997,-2180.929849,0.00012379,2]
[347253877,1735638648010,-1991.652634,0.00012379,2]
[347253878,1735638648021,-1991.652634,0.00012379,2]
[347253879,1735638648031,-2180.929849,0.00012379,2]
[347253880,1735638648042,-2180.929849,0.00012379,2]
[347253881,1735638648055,-1165.136303,0.00012379,2]
[347253882,1735638648064,-1165.136303,0.00012379,2]
[347253883,1735638648074,-1165.136303,0.00012379,2]
[347253884,1735638648083,-1165.136303,0.00012379,2]
[347253885,1735638648092,-178.630696,0.00012379,2]
[347253886,1735638648101,-178.630696,0.00012379,2]
[347253887,1735638648111,-178.630696,0.00012379,2]
[347253888,1735638648120,-178.630696,0.00012379,2]
[347253889,1735638648129,-151.0,0.00012379,2]
[347253890,1735638648138,-151.0,0.00012379,2]
[347253891,1735638648147,-262.436036,0.00012379,2]
[347253892,1735638648156,-262.436036,0.00012379,2]
[347253893,1735638648165,-262.436036,0.00012379,2]
[347253894,1735638648174,-262.436036,0.00012379,2]
[347253895,1735638648183,-4225225.57417863,0.0001238,2]
[347253896,1735638648455,-17506.48197631,0.0001238,2]
[347253897,1735638648598,-3991.02104398,0.0001238,2]
[347253898,1735638648610,-15328.47783863,0.0001238,2]
[347253899,1735638648635,-550.7844546,0.0001238,2]
[347253900,1735638650688,-152.21503575,0.0001238,2]
[347253901,1735638651238,-9707.8212,0.0001238,2]
[347253902,1735638651249,-4399.11840372,0.0001238,2]
[347253903,1735638651260,-8915.39040502,0.0001238,2]
[347253904,1735638651271,-715.20274929,0.0001238,2]
[347253905,1735638651295,-76944.62459315,0.0001238,2]
[347253906,1735638651346,-1004.55263719,0.0001238,2]
[347253907,1735638651386,-2329.33936256,0.0001238,2]
[347253908,1735638651398,-1060.69716,0.0001238,2]
[347253909,1735638652793,-910.04906016,0.0001238,2]
[347253910,1735638652804,-2631.32905608,0.0001238,2]
[347253911,1735638652895,-7189.79366748,0.0001238,2]
[347253912,1735638654642,-19420.0,0.0001238,2]
[347253920,1735639644754,284.62,9.261e-05,2]
[347253927,1735639832216,-250.0,0.00011186,2]
[347253928,1735639832226,-250.0,0.00011186,2]
[347253929,1735639832236,-1916.3040357,0.00011201,2]
[347253930,1735639832261,-21983.6959643,0.00011201,2]
[347253931,1735639832271,-387.77,0.00011201,2]
[347253932,1735639832280,-552.81,0.00011213,2]
[347253933,1735639832290,-1000.0,0.00011333,2]
[347253934,1735639832300,-167.25,0.00011362,2]
[347253935,1735639832309,-564.39,0.0001143,2]
[347253936,1735639832318,-1955.28,0.00011522,2]
[347253937,1735639832327,-284.62,0.00011525,2]
[347253938,1735639832337,-313.953,0.0001176,2]
[347253939,1735639832346,-167.37,0.00011791,2]
[347253940,1735639832356,-495.31,0.00011811,2]
[347253941,1735639832365,-3886.0,0.00011895,2]
[347253942,1735639832374,-150.0,0.00011895,2]
[347253943,1735639832384,-496.4,0.0001198,2]
[347253944,1735639832393,-500.0,0.00011998,2]
[347253945,1735639832402,-450.0,0.00012,2]
[347253946,1735639832411,-500.0,0.00012026,2]
[347253947,1735639832420,-500.0,0.00012053,2]
[347253948,1735639832430,-500.0,0.00012081,2]
[347253949,1735639832439,-500.0,0.00012108,2]
[347253950,1735639832448,-501.43,0.00012111,2]
[347253951,1735639832458,-500.0,0.00012135,2]
[347253952,1735639832467,-602.488,0.00012136,2]
[347253953,1735639832476,-500.0,0.00012163,2]
[347253954,1735639832486,-338.0,0.00012175,2]
[347253955,1735639832495,-338.0,0.00012175,2]
[347253956,1735639832504,-338.0,0.00012175,2]
[347253957,1735639832513,-338.0,0.00012175,2]
[347253958,1735639832522,-338.0,0.00012175,2]
[347253959,1735639832531,-338.0,0.00012175,2]
[347253960,1735639832540,-338.0,0.00012175,2]
[347253961,1735639832549,-239.0,0.00012175,2]
[347253962,1735639832558,-239.0,0.00012175,2]
[347253963,1735639832567,-225.9462776,0.00012175,2]
[347253964,1735639837814,-13.0537224,0.00012175,2]
[347253965,1735639837823,-239.0,0.00012175,2]
[347253966,1735639837833,-114.9363428,0.00012175,2]
[347253967,1735639837926,-124.0636572,0.00012175,2]
[347253968,1735639837938,-239.0,0.00012175,2]
[347253969,1735639837947,-239.0,0.00012175,2]
[347253970,1735639837957,-239.0,0.00012175,2]
[347253971,1735639837967,-239.0,0.00012175,2]
[347253972,1735639837976,-239.0,0.00012175,2]
[347253973,1735639837985,-239.0,0.00012175,2]
[347253974,1735639837995,-239.0,0.00012175,2]
[347253975,1735639838005,-338.0,0.00012175,2]
[347253976,1735639838014,-338.0,0.00012175,2]
[347253977,1735639838024,-338.0,0.00012175,2]
[347253978,1735639838033,-338.0,0.00012175,2]
[347253979,1735639838043,-338.0,0.00012175,2]
[347253980,1735639838053,-338.0,0.00012175,2]
[347253981,1735639838063,-338.0,0.00012175,2]
[347253982,1735639838072,-338.0,0.00012175,2]
[347253983,1735639838081,-338.0,0.00012175,2]
[347253984,1735639838091,-338.0,0.00012175,2]
[347253985,1735639838101,-338.0,0.00012175,2]
[347253986,1735639838111,-338.0,0.00012175,2]
[347253987,1735639838124,-338.0,0.00012175,2]
[347253988,1735639838134,-338.0,0.00012175,2]
[347253989,1735639838143,-239.0,0.00012175,2]
[347253990,1735639838155,-239.0,0.00012175,2]
[347253991,1735639838165,-239.0,0.00012175,2]
[347253992,1735639838175,-239.0,0.00012175,2]
[347253993,1735639838184,-239.0,0.00012175,2]
[347253994,1735639838195,-239.0,0.00012175,2]
[347253995,1735639838205,-239.0,0.00012175,2]
[347253996,1735639838215,-239.0,0.00012175,2]
[347253997,1735639838225,-239.0,0.00012175,2]
[347253998,1735639838235,-239.0,0.00012175,2]
[347253999,1735639838244,-239.0,0.00012175,2]
[347254000,1735639838254,-239.0,0.00012175,2]
[347254001,1735639838263,-239.0,0.00012175,2]
[347254002,1735639838272,-239.0,0.00012175,2]
[347254005,1735639838283,-500.0,0.0001219,2]
[347254006,1735639838292,-500.0,0.00012218,2]
[347254009,1735639838302,-2013.0,0.00012218,2]
[347254011,1735639838311,-1266.0,0.00012218,2]
[347254013,1735639838322,-150.0,0.00012218,2]
[347254015,1735639838332,-566.0,0.00012218,2]
[347254017,1735639838342,-634.0,0.00012218,2]
[347254019,1735639838351,-1900.0,0.00012218,2]
[347254020,1735639838361,-816.0,0.00012218,2]
[347254022,1735639838371,-914.0,0.00012218,2]
[347254024,1735639838381,-1255.0,0.00012218,2]
[347254026,1735639838391,-3774.0,0.00012218,2]
[347254027,1735639838401,-536.0,0.00012218,2]
[347254028,1735639838410,-3720.0,0.00012218,2]
[347254029,1735639838420,-500.0,0.00012245,2]
[347254030,1735639838429,-500.0,0.00012272,2]
[347254031,1735639838438,-500.0,0.00012283,2]
[347254032,1735639838447,-20076.66945344,0.000123,2]
[347254033,1735639838457,-500.0,0.000123,2]
[347254034,1735639838467,-160.16279684,0.00012327,2]
[347254035,1735639838477,-169.0120074,0.00012376,2]
[347254036,1735639838486,-537.9,0.00012379,2]
[347254037,1735639838495,-14601.48177899,0.0001238,2]
[347254038,1735639838521,-85355.62897353,0.0001238,2]
[347254039,1735639838532,-645.98171127,0.0001238,2]
[347254040,1735639838624,-385.87238127,0.0001238,2]
[347254041,1735639838635,-1516.19512172,0.0001238,2]
[347254042,1735639838652,-533.5,0.0001238,2]
[347254043,1735639838663,-4042.16836142,0.0001238,2]
[347254056,1735639840444,-3921.6432,0.0001238,2]
[347254057,1735639840461,-13896.61946613,0.0001238,2]
[347254058,1735639840473,-1693.55000005,0.0001238,2]
[347254059,1735639840484,-1197.36579206,0.0001238,2]